bitfinex/quotes_SOLUSD_20241016
["timestamp","ask_amount","ask_price","bid_price","bid_amount"]
[1729071594402,0.620159,155.95,155.9,3.76657669]
[1729071594597,0.620159,155.95,155.88,5.37186036]
[1729071594821,0.620159,155.95,155.89,5.37186036]
[1729071595327,0.620159,155.95,155.9,3.76657669]
[1729071595502,0.620159,155.95,155.88,5.37186036]
[1729071595707,0.620159,155.95,155.89,5.37186036]
[1729071595909,0.620159,155.95,155.88,5.37186036]
[1729071596209,0.620159,155.95,155.89,5.37186036]
[1729071596421,0.620159,155.95,155.88,5.37186036]
[1729071596609,0.620159,155.95,155.89,5.37017238]
[1729071596818,0.620159,155.95,155.86,18.02014218]
[1729071597022,0.620159,155.95,155.87,5.37017238]
[1729071597332,0.620159,155.95,155.86,12.6499698]
[1729071597333,0.620159,155.95,155.88,5.37017238]
[1729071597512,0.620159,155.95,155.89,5.37017238]
[1729071597716,0.620159,155.95,155.87,5.37017238]
[1729071597921,0.620159,155.95,155.88,5.37017238]
[1729071598127,0.620159,155.95,155.89,5.37017238]
[1729071598325,0.620159,155.95,155.87,5.37017238]
[1729071598523,0.620159,155.95,155.88,5.37017238]
[1729071598724,0.620159,155.95,155.89,5.37017238]
[1729071599043,0.620159,155.95,155.87,5.37017238]
[1729071599330,0.620159,155.95,155.88,5.37017238]
[1729071599630,0.620159,155.95,155.89,5.37017238]
[1729071599834,0.620159,155.95,155.9,1.60528367]
[1729071600036,0.620159,155.95,155.88,5.37017238]
[1729071600216,7.032559,155.95,155.89,5.37017238]
[1729071600523,7.032559,155.95,155.86,12.6499698]
[1729071600825,7.032559,155.95,155.9,1.60521712]
[1729071601026,7.032559,155.95,155.86,12.6499698]
[1729071601027,7.032559,155.95,155.88,18.01884828]
[1729071601219,7.032559,155.95,155.89,5.36887848]
[1729071601540,7.032559,155.95,155.9,1.60521712]
[1729071601915,7.032559,155.95,155.88,5.36887848]
[1729071602227,7.032559,155.95,155.89,1.60521712]
[1729071602412,7.032559,155.95,155.9,1.60521712]
[1729071602608,7.032559,155.95,155.87,3.76366136]
[1729071602839,7.032559,155.95,155.88,5.36886281]
[1729071603017,0.620159,155.95,155.89,1.60520145]
[1729071603332,7.032559,155.95,155.9,1.60520145]
[1729071603519,30.0,155.91,155.89,3.76366136]
[1729071603718,30.0,155.91,155.9,1.60525082]
[1729071603945,30.0,155.91,155.89,3.76350673]
[1729071604234,30.0,155.91,155.9,1.60525045]
[1729071604613,30.0,155.91,155.9,1.60525023]
[1729071607535,30.0,155.91,155.89,3.76350673]
[1729071608839,30.0,155.91,155.89,5.36885954]
[1729071609138,30.0,155.91,155.89,3.76350673]
[1729071609515,30.0,155.91,155.89,5.36885954]
[1729071609715,30.0,155.91,155.89,3.76350673]
[1729071610127,30.0,155.91,155.89,1.60535281]
[1729071610344,30.0,155.91,155.86,5.36876037]
[1729071610645,30.0,155.91,155.87,15.37965097]
[1729071610840,30.0,155.91,155.88,5.36876037]
[1729071611150,30.0,155.91,155.89,1.60535281]
[1729071611354,30.0,155.91,155.9,1.60535281]
[1729071612220,0.620159,155.95,155.9,1.60523984]
[1729071612967,0.620159,155.95,155.89,10.0108906]
[1729071613246,0.620159,155.95,155.9,15.37810736]
[1729071613448,0.620159,155.95,155.91,1.60518477]
[1729071613658,0.620159,155.95,155.85,18.01717559]
[1729071613954,0.620159,155.95,155.86,5.36720579]
[1729071614159,30.0,155.91,155.87,5.36720579]
[1729071614333,30.0,155.91,155.88,1.60518477]
[1729071614655,30.0,155.91,155.89,1.60518477]
[1729071614946,30.0,155.91,155.87,3.76202102]
[1729071615149,30.0,155.91,155.88,1.60534964]
[1729071615454,30.0,155.91,155.89,1.60534964]
[1729071615639,30.0,155.91,155.87,3.76202102]
[1729071615947,30.0,155.91,155.88,1.60534916]
[1729071616246,30.0,155.91,155.89,1.60534916]
[1729071616444,30.0,155.91,155.85,3.76202102]
[1729071616631,30.0,155.91,155.86,5.36738152]
[1729071616828,30.0,155.91,155.87,1.6053605]
[1729071617033,30.0,155.91,155.86,3.76202102]
[1729071617349,30.0,155.91,155.85,3.76202102]
[1729071617549,30.0,155.91,155.86,3.76202102]
[1729071617855,30.0,155.91,155.84,3.76202102]
[1729071618045,30.0,155.91,155.83,25.54737424]
[1729071618046,30.0,155.91,155.85,3.76202102]
[1729071618251,30.0,155.91,155.86,3.76202102]
[1729071618429,30.0,155.9,155.84,3.76202102]
[1729071618631,30.0,155.9,155.85,3.76202102]
[1729071618829,30.0,155.9,155.83,3.76202102]
[1729071619033,36.4146,155.9,155.84,3.76202102]
[1729071619331,30.0,155.88,155.83,3.76202102]
[1729071619530,30.0,155.88,155.84,3.76202102]
[1729071619732,30.0,155.88,155.82,3.76202102]
[1729071619949,30.0,155.88,155.83,3.7633024]
[1729071620451,30.0,155.88,155.84,3.7633024]
[1729071620753,30.0,155.88,155.82,3.7633024]
[1729071620938,30.0,155.88,155.83,3.7633024]
[1729071621135,30.0,155.88,155.84,3.7633024]
[1729071621339,30.0,155.88,155.85,3.7633024]
[1729071621575,30.0,155.88,155.82,3.7633024]
[1729071621749,30.0,155.88,155.83,3.7633024]
[1729071621940,30.0,155.88,155.84,3.7633024]
[1729071622143,30.0,155.88,155.85,3.7633024]
[1729071622450,30.0,155.88,155.82,3.7633024]
[1729071622637,30.0,155.88,155.83,3.7633024]
[1729071622830,30.0,155.88,155.81,6.7064664]
[1729071622831,30.0,155.88,155.84,3.7633024]
[1729071623039,30.0,155.88,155.85,3.7633024]
[1729071623258,30.0,155.88,155.82,3.7633024]
[1729071623433,30.0,155.88,155.81,6.7064664]
[1729071623635,45.3635,155.88,155.81,6.7064664]
[1729071623851,45.3635,155.88,155.79,26.27404125]
[1729071625256,30.0,155.87,155.79,26.27404125]
[1729071626950,30.0,155.87,155.79,9.97664125]
[1729071627156,30.0,155.86,155.79,9.97664125]
[1729071627329,30.0,155.86,155.79,9.01347424]
[1729071629554,30.0,155.86,155.78,6.70704685]
[1729071629759,6.4165,155.85,155.78,6.70704685]
[1729071630065,6.4165,155.85,155.77,0.96327188]
[1729071630066,30.0,155.81,155.77,0.96327188]
[1729071630360,46.5978,155.81,155.75,15.72250362]
[1729071630546,53.016,155.81,155.75,6.70902938]
[1729071630861,53.016,155.81,155.7,28.37330953]
[1729071631044,53.016,155.81,155.7,29.33700331]
[1729071631658,30.0,155.8,155.7,16.68703351]
[1729071631869,30.0,155.8,155.71,12.6499698]
[1729071632038,30.0,155.8,155.7,16.68703351]
[1729071632039,30.0,155.8,155.75,12.6499698]
[1729071632441,30.0,155.8,155.77,12.6499698]
[1729071635244,30.0,155.8,155.74,6.6013]
[1729071635556,30.0,155.8,155.75,12.6499698]
[1729071635765,30.0,155.8,155.76,3.75804844]
[1729071639065,30.0,155.8,155.76,3.75508882]
[1729071640861,30.0,155.8,155.75,16.40505862]
[1729071641058,30.0,155.8,155.76,3.75508882]
[1729071643174,30.0,155.8,155.76,12.76856306]
[1729071644042,30.0,155.8,155.77,9.01347424]
[1729071644244,30.0,155.8,155.77,21.66344404]
[1729071644965,30.0,155.8,155.77,9.01347424]
[1729071645360,30.0,155.8,155.77,12.76568519]
[1729071646451,30.0,155.8,155.77,9.01347424]
[1729071649178,23.776884,155.79,155.73,3.75330476]
[1729071649480,30.0,155.78,155.74,9.01347424]
[1729071651987,30.0,155.78,155.74,12.7664043]
[1729071656488,30.0,155.78,155.74,9.01347424]
[1729071657367,30.0,155.78,155.74,12.76789567]
[1729071659272,30.0,155.78,155.75,3.75442143]
[1729071659481,30.0,155.78,155.77,12.6499698]
[1729071659671,30.0,155.78,155.77,16.40439123]
[1729071660879,30.0,155.78,155.77,16.40659271]
[1729071662593,30.0,155.78,155.77,12.6499698]
[1729071662781,30.0,155.78,155.77,16.40900432]
[1729071664390,30.0,155.78,155.77,3.75903452]
[1729071664598,23.776884,155.77,155.76,3.75903452]
[1729071664806,53.776884,155.77,155.75,3.75903452]
[1729071665093,53.776884,155.77,155.69,12.6499698]
[1729071665094,53.776884,155.77,155.7,3.75903452]
[1729071665396,53.776884,155.77,155.71,3.75903452]
[1729071665596,53.776884,155.77,155.7,3.75903452]
[1729071665772,30.0,155.73,155.71,3.75903452]
[1729071665970,30.0,155.73,155.7,3.75903452]
[1729071666174,30.0,155.73,155.71,3.75903452]
[1729071666410,23.776884,155.72,155.69,3.75903452]
[1729071666691,23.776884,155.72,155.7,3.76376695]
[1729071667093,23.776884,155.72,155.69,3.76376695]
[1729071667285,23.776884,155.72,155.7,3.76376695]
[1729071667484,23.776884,155.72,155.69,3.76376695]
[1729071667690,23.776884,155.72,155.7,3.76376695]
[1729071667896,23.776884,155.72,155.69,3.76376695]
[1729071668906,23.776884,155.72,155.65,3.76376695]
[1729071669078,23.776884,155.72,155.66,3.76376695]
[1729071669278,23.776884,155.72,155.67,3.76376695]
[1729071669479,23.776884,155.72,155.65,3.76376695]
[1729071669690,23.776884,155.72,155.66,3.76376695]
[1729071669896,23.776884,155.72,155.67,3.76376695]
[1729071670089,23.776884,155.72,155.66,3.76376695]
[1729071670287,23.776884,155.72,155.67,3.76376695]
[1729071670494,23.776884,155.72,155.66,3.76376695]
[1729071670698,23.776884,155.72,155.65,12.6499698]
[1729071670902,23.776884,155.72,155.66,3.7620866]
[1729071671797,23.776884,155.72,155.65,3.7620866]
[1729071672784,23.876884,155.72,155.65,3.7620866]
[1729071672976,23.776884,155.72,155.65,3.7620866]
[1729071675093,23.776884,155.72,155.66,12.6499698]
[1729071675281,23.776884,155.72,155.67,23.7620866]
[1729071675484,45.1612,155.73,155.67,23.7620866]
[1729071675485,45.1612,155.73,155.69,12.6499698]
[1729071675685,45.1612,155.73,155.7,3.7620866]
[1729071676385,0.1,155.72,155.68,3.7620866]
[1729071676580,19.27,155.71,155.64,3.75886327]
[1729071676775,23.776884,155.72,155.62,10.46750933]
[1729071677084,23.776884,155.72,155.63,5.36607511]
[1729071677294,23.776884,155.72,155.64,3.75886327]
[1729071677478,23.776884,155.72,155.65,12.6499698]
[1729071677679,15.8497,155.7,155.66,5.36607511]
[1729071677889,23.776884,155.69,155.63,5.36607511]
[1729071678181,15.8497,155.7,155.61,5.36576395]
[1729071678182,46.300584,155.66,155.61,5.36576395]
[1729071678379,46.300584,155.66,155.6,5.36576395]
[1729071678581,46.300584,155.66,155.6,1.60742142]
[1729071678784,46.300584,155.66,155.59,5.36403596]
[1729071678984,46.300584,155.66,155.59,3.75637698]
[1729071679200,46.300584,155.66,155.59,1.60765898]
[1729071679507,46.300584,155.66,155.59,5.36403596]
[1729071679689,46.300584,155.66,155.59,23.75637698]
[1729071679900,71.994884,155.66,155.6,5.36403596]
[1729071680102,23.776884,155.64,155.55,8.09108414]
[1729071680406,23.776884,155.64,155.55,13.45449713]
[1729071680407,49.572084,155.64,155.55,13.45449713]
[1729071680613,49.572084,155.64,155.55,8.09108414]
[1729071680906,49.472984,155.62,155.51,3.75119835]
[1729071681114,43.046884,155.62,155.51,12.06448856]
[1729071681285,43.046884,155.62,155.52,1.60828852]
[1729071681482,43.046884,155.62,155.51,6.70500169]
[1729071681680,23.776884,155.62,155.51,6.70500169]
[1729071681907,23.776884,155.62,155.51,16.40475393]
[1729071682106,23.776884,155.62,155.52,1.60864297]
[1729071682310,23.776884,155.62,155.52,20.0]
[1729071683116,23.776884,155.62,155.52,28.09108414]
[1729071683405,23.776884,155.62,155.52,47.93793543]
[1729071684613,23.776884,155.62,155.52,28.09108414]
[1729071685412,23.776884,155.63,155.54,19.84685129]
[1729071685995,23.776884,155.63,155.56,19.84685129]
[1729071686305,23.776884,155.63,155.58,19.84685129]
[1729071686498,20.0,155.65,155.58,19.84685129]
[1729071688200,23.776884,155.64,155.58,19.84685129]
[1729071689021,20.0,155.65,155.58,19.84685129]
[1729071689205,22.5237,155.66,155.58,19.84685129]
[1729071689515,22.5237,155.66,155.52,47.93793543]
[1729071689516,28.9481,155.66,155.56,19.84685129]
[1729071689705,22.5237,155.66,155.56,19.84685129]
[1729071689901,22.6237,155.66,155.56,19.84685129]
[1729071690108,29.048,155.66,155.56,19.84685129]
[1729071690821,23.776884,155.65,155.56,19.84685129]
[1729071691026,23.776884,155.65,155.58,19.84685129]
[1729071691214,22.5237,155.66,155.58,19.84685129]
[1729071692503,23.776884,155.65,155.58,19.84685129]
[1729071699304,22.5237,155.66,155.6,19.84685129]
[1729071699503,22.5237,155.66,155.62,19.84685129]
[1729071699719,16.4739,155.66,155.62,19.84685129]
[1729071699904,16.4739,155.66,155.65,12.69076443]
[1729071700223,6.3032,155.7,155.65,12.69076443]
[1729071700432,6.3032,155.7,155.56,15.37]
[1729071700643,6.3032,155.7,155.66,12.69076443]
[1729071701824,6.3032,155.7,155.64,19.82491017]
[1729071702217,23.776884,155.69,155.64,19.82491017]
[1729071703701,23.776884,155.69,155.59,6.5046115]
[1729071703902,23.776884,155.69,155.56,15.27]
[1729071704224,23.776884,155.69,155.61,19.82491017]
[1729071705131,23.776884,155.67,155.61,19.82491017]
[1729071705515,23.776884,155.68,155.61,19.82491017]
[1729071705712,6.4242,155.66,155.56,16.23460367]
[1729071705917,23.776884,155.65,155.58,19.82491017]
[1729071706504,23.776884,155.66,155.58,19.82491017]
[1729071707924,23.776884,155.64,155.57,39.82491017]
[1729071708523,23.776884,155.64,155.59,19.82491017]
[1729071712514,23.776884,155.64,155.56,20.0]
[1729071712515,23.776884,155.64,155.58,19.82491017]
[1729071721119,15.3265,155.65,155.6,19.82491017]
[1729071722216,15.3265,155.65,155.58,19.82491017]
[1729071722535,23.776884,155.64,155.59,3.76890451]
[1729071723338,23.776884,155.64,155.6,3.7719784]
[1729071723540,23.776884,155.64,155.59,3.7719784]
[1729071723744,23.776884,155.64,155.58,19.82491017]
[1729071723932,23.776884,155.64,155.61,12.69833551]
[1729071726836,30.0,155.62,155.61,12.69833551]
[1729071728142,30.0,155.62,155.61,16.47273436]
[1729071728437,30.0,155.62,155.61,12.69833551]
[1729071728626,30.0,155.62,155.61,16.47303419]
[1729071728826,30.0,155.62,155.61,3.77469868]
[1729071729031,30.0,155.62,155.61,12.69833551]
[1729071730339,30.0,155.62,155.61,16.47389832]
[1729071730555,30.0,155.62,155.61,12.69833551]
[1729071731730,30.0,155.62,155.61,16.47439583]
[1729071731934,30.0,155.62,155.61,12.69833551]
[1729071733441,23.776884,155.65,155.61,12.69833551]
[1729071734861,23.776884,155.65,155.56,20.0]
[1729071734862,23.776884,155.65,155.63,12.69833551]
[1729071736455,30.0,155.64,155.63,12.69833551]
[1729071736630,30.0,155.64,155.61,12.69833551]
[1729071737445,30.0,155.63,155.61,12.69833551]
[1729071741354,30.0,155.63,155.62,3.77662263]
[1729071741683,29.3805,155.63,155.62,3.77650945]
[1729071742043,29.3805,155.63,155.62,16.47484496]
[1729071745653,29.3805,155.63,155.62,12.69833551]
[1729071749260,29.3805,155.63,155.62,16.4795197]
[1729071751836,53.157384,155.63,155.62,16.4795197]
[1729071753472,23.776884,155.63,155.62,16.4795197]
[1729071753941,23.776884,155.63,155.62,3.78118419]
[1729071754147,39.873484,155.63,155.62,3.78118419]
[1729071755951,69.873484,155.63,155.62,3.78118419]
[1729071757039,23.776884,155.62,155.58,12.69833551]
[1729071757241,23.776884,155.59,155.58,12.69833551]
[1729071757456,23.776884,155.59,155.53,8.09108414]
[1729071757643,23.776884,155.59,155.57,12.69833551]
[1729071757840,23.776884,155.59,155.58,3.7856379]
[1729071758241,53.776884,155.59,155.58,3.7856379]
[1729071760863,53.776884,155.59,155.57,12.69833551]
[1729071761057,53.776884,155.58,155.57,12.69833551]
[1729071761472,53.776884,155.58,155.57,16.48302459]
[1729071764667,99.3996,155.53,155.46,1.11801874]
[1729071764850,99.3996,155.53,155.42,0.620159]
[1729071764851,19.27,155.48,155.42,0.620159]
[1729071766778,23.776884,155.47,155.42,13.31849451]
[1729071766945,53.776884,155.47,155.42,13.31849451]
[1729071767267,73.046884,155.47,155.42,0.620159]
[1729071767863,53.776884,155.47,155.42,0.620159]
[1729071768457,23.776884,155.45,155.43,12.69833551]
[1729071769459,30.0,155.44,155.43,12.69833551]
[1729071772656,30.0,155.44,155.42,0.620159]
[1729071772853,30.0,155.44,155.43,12.69833551]
[1729071774370,30.0,155.44,155.42,0.620159]
[1729071774371,17.30166449,155.43,155.42,0.620159]
[1729071774557,17.30166449,155.43,155.42,13.31849451]
[1729071775583,47.30166449,155.43,155.42,13.31849451]
[1729071777669,19.27,155.52,155.42,20.56941106]
[1729071777887,19.27,155.52,155.51,12.69833551]
[1729071778058,22.87,155.53,155.51,12.69833551]
[1729071778666,42.14,155.53,155.51,12.69833551]
[1729071779065,23.776884,155.52,155.51,12.69833551]
[1729071779678,53.776884,155.52,155.51,12.69833551]
[1729071780367,30.0,155.52,155.51,12.69833551]
[1729071781650,53.776884,155.52,155.51,12.69833551]
[1729071782777,30.0,155.52,155.51,12.69833551]
[1729071782988,23.776884,155.55,155.51,12.69833551]
[1729071783756,43.046884,155.55,155.45,15.396]
[1729071784062,43.046884,155.55,155.51,12.69833551]
[1729071784863,23.776884,155.55,155.51,12.69833551]
[1729071785066,23.776884,155.56,155.53,12.69833551]
[1729071785280,29.01,155.54,155.53,12.69833551]
[1729071785580,52.786884,155.54,155.53,12.69833551]
[1729071786864,52.786884,155.54,155.51,12.69833551]
[1729071787982,52.786884,155.54,155.53,12.69833551]
[1729071788758,29.01,155.54,155.53,12.69833551]
[1729071789165,19.27,155.6,155.53,12.69833551]
[1729071789374,16.1026,155.61,155.56,12.69833551]
[1729071789573,29.01,155.57,155.56,12.69833551]
[1729071790167,19.37,155.64,155.56,12.69833551]
[1729071790374,19.37,155.64,155.59,12.69833551]
[1729071790578,29.01,155.6,155.59,12.69833551]
[1729071790992,52.786884,155.6,155.59,12.69833551]
[1729071791168,23.776884,155.6,155.59,12.69833551]
[1729071794172,23.776884,155.6,155.57,12.69833551]
[1729071800289,23.776884,155.59,155.54,12.69833551]
[1729071800785,25.6964,155.61,155.54,12.69833551]
[1729071800786,30.0,155.58,155.54,12.69833551]
[1729071801809,30.0,155.58,155.56,12.69833551]
[1729071802104,23.776884,155.61,155.56,12.69833551]
[1729071803192,43.046884,155.62,155.56,12.69833551]
[1729071805206,49.473084,155.62,155.56,12.69833551]
[1729071808202,43.046884,155.62,155.56,12.69833551]
[1729071811512,49.472784,155.62,155.56,12.69833551]
[1729071817389,43.046884,155.62,155.56,12.69833551]
[1729071822108,19.27,155.64,155.56,12.69833551]
[1729071822323,6.4243,155.66,155.58,12.69833551]
[1729071822988,0.1,155.58,155.45,15.451]
[1729071823312,55.8748,155.58,155.5,12.69833551]
[1729071823495,23.776884,155.57,155.51,12.69833551]
[1729071824013,23.776884,155.57,155.45,22.15937287]
[1729071824204,23.776884,155.57,155.5,12.69833551]
[1729071824914,30.0,155.58,155.52,12.69833551]
[1729071828496,30.0,155.58,155.47,20.0]
[1729071828824,30.0,155.58,155.51,12.69833551]
[1729071829923,30.0,155.58,155.48,23.776884]
[1729071830123,30.0,155.58,155.52,12.69833551]
[1729071832521,49.27,155.58,155.52,12.69833551]
[1729071832813,30.0,155.58,155.52,12.69833551]
[1729071838009,30.0,155.58,155.54,12.69833551]
[1729071838218,30.0,155.58,155.49,6.0434]
[1729071838219,30.0,155.58,155.56,12.69833551]
[1729071840126,30.0,155.58,155.52,20.0]
[1729071840322,30.0,155.58,155.55,12.69833551]
[1729071840925,30.0,155.58,155.52,20.0]
[1729071841219,30.0,155.58,155.51,15.8191]
[1729071841420,30.0,155.58,155.53,12.69833551]
[1729071842204,30.0,155.58,155.51,15.8191]
[1729071842509,30.0,155.58,155.54,12.69833551]
[1729071847340,30.0,155.58,155.56,12.69833551]
[1729071847834,30.0,155.58,155.52,20.0]
[1729071848013,30.0,155.58,155.55,12.69833551]
[1729071850731,30.0,155.58,155.52,20.0]
[1729071850943,30.0,155.58,155.55,12.69833551]
[1729071852406,23.776884,155.53,155.47,6.70681055]
[1729071852630,43.046884,155.53,155.47,6.70681055]
[1729071852818,43.046884,155.53,155.45,12.69833551]
[1729071853632,49.476484,155.53,155.45,12.69833551]
[1729071854416,23.776884,155.53,155.45,12.69833551]
[1729071855421,23.776884,155.53,155.43,15.8219]
[1729071855422,6.4293,155.54,155.44,20.0]
[1729071855623,6.4293,155.54,155.47,12.69833551]
[1729071855925,6.4293,155.54,155.46,12.69833551]
[1729071856742,23.776884,155.53,155.44,20.0]
[1729071856933,49.476684,155.53,155.46,12.69833551]
[1729071858838,49.476684,155.53,155.44,20.0]
[1729071859014,49.476684,155.53,155.46,12.69833551]
[1729071864140,16.5685,155.52,155.43,20.0]
[1729071864365,16.5685,155.52,155.46,12.69833551]
[1729071868121,23.776884,155.53,155.48,12.69833551]
[1729071868322,26.4291,155.55,155.48,12.69833551]
[1729071868513,23.776884,155.54,155.48,12.69833551]
[1729071868728,30.206184,155.54,155.43,20.0]
[1729071869047,30.206184,155.54,155.47,12.69833551]
[1729071869419,20.0,155.55,155.47,12.69833551]
[1729071869620,26.4288,155.55,155.47,12.69833551]
[1729071869930,26.4288,155.55,155.49,12.69833551]
[1729071871014,23.776884,155.53,155.43,20.0]
[1729071871246,30.206784,155.53,155.47,12.69833551]
[1729071873147,23.776884,155.51,155.47,12.69833551]
[1729071874226,43.046884,155.51,155.42,0.620159]
[1729071874425,23.776884,155.49,155.42,0.620159]
[1729071874627,23.776884,155.49,155.45,12.69833551]
[1729071876421,23.776884,155.49,155.42,0.620159]
[1729071876422,58.337984,155.49,155.42,0.620159]
[1729071876625,58.337984,155.49,155.42,13.31849451]
[1729071876841,58.337984,155.49,155.43,12.69833551]
[1729071877319,23.776884,155.47,155.43,12.69833551]
[1729071879055,23.776884,155.47,155.42,0.620159]
[1729071879266,6.4329,155.45,155.42,0.620159]
[1729071879547,23.776884,155.46,155.42,0.620159]
[1729071879851,23.776884,155.47,155.42,13.31849451]
[1729071880032,15.2911,155.49,155.44,12.69833551]
[1729071880439,35.1287,155.53,155.46,12.69833551]
[1729071880642,41.5586,155.53,155.46,12.69833551]
[1729071881430,15.8587,155.53,155.46,12.69833551]
[1729071881650,15.8587,155.53,155.48,12.69833551]
[1729071882730,23.776884,155.52,155.48,12.69833551]
[1729071883562,15.8587,155.53,155.48,12.69833551]
[1729071884135,30.0,155.49,155.48,12.69833551]
[1729071894754,15.6147,155.57,155.49,20.0]
[1729071894957,15.0631,155.61,155.56,12.69833551]
[1729071895135,15.0631,155.61,155.59,12.69833551]
[1729071895865,30.0,155.6,155.59,12.69833551]
[1729071899759,30.0,155.6,155.5,5.94129468]
[1729071900561,23.776884,155.59,155.53,12.69833551]
[1729071900777,30.0,155.57,155.55,12.69833551]
[1729071909272,15.0304,155.65,155.55,12.69833551]
[1729071909438,0.1,155.7,155.55,12.69833551]
[1729071909439,16.5868,155.69,155.63,12.69833551]
[1729071909864,23.0099,155.69,155.63,12.69833551]
[1729071910075,16.5868,155.69,155.63,12.69833551]
[1729071910366,16.5868,155.69,155.65,12.69833551]
[1729071911392,30.0,155.66,155.65,12.69833551]
[1729071916795,30.0,155.66,155.56,15.2186]
[1729071917077,30.201584,155.65,155.6,12.69833551]
[1729071917265,30.0,155.64,155.6,12.69833551]
[1729071917460,30.0,155.64,155.56,15.2186]
[1729071917778,30.0,155.64,155.6,12.69833551]
[1729071919185,30.0,155.64,155.56,15.2186]
[1729071919374,36.4253,155.64,155.52,15.2186]
[1729071919575,46.497684,155.63,155.52,15.2186]
[1729071919773,30.0,155.61,155.52,15.2186]
[1729071920089,36.4263,155.61,155.54,12.69833551]
[1729071921876,36.4263,155.61,155.52,19.85693798]
[1729071924679,30.0,155.61,155.52,19.85693798]
[1729071924970,23.776884,155.6,155.52,19.85693798]
[1729071925172,23.776884,155.6,155.5,20.82193231]
[1729071925686,30.0,155.57,155.5,0.96499433]
[1729071929497,30.0,155.57,155.5,0.96499433]
[1729071932801,30.0,155.57,155.5,20.82193231]
[1729071933386,23.776884,155.56,155.49,6.70855245]
[1729071933687,30.206484,155.53,155.44,19.85693798]
[1729071933893,23.776884,155.53,155.42,7.32068005]
[1729071934090,6.4302,155.52,155.43,19.85693798]
[1729071935091,21.827,155.51,155.42,20.47709698]
[1729071935276,30.0,155.5,155.42,20.47709698]
[1729071935472,23.776884,155.49,155.43,20.0]
[1729071935885,30.208184,155.49,155.42,20.47709698]
[1729071936096,30.208184,155.49,155.42,0.620159]
[1729071936404,30.0,155.48,155.42,0.620159]
[1729071937807,30.0,155.44,155.42,0.620159]
[1729071938810,29.379841,155.42,155.38,19.85693798]
[1729071939895,30.0,155.41,155.38,19.85693798]
[1729071940804,30.0,155.4,155.38,19.85693798]
[1729071941889,10.14306202,155.38,155.35,6.2886]
[1729071942090,10.14306202,155.38,155.37,19.85693798]
[1729071942285,30.0,155.4,155.38,20.0]
[1729071942497,15.3514,155.49,155.4,20.0]
[1729071942691,15.3514,155.49,155.42,19.85693798]
[1729071944493,30.0,155.43,155.42,19.85693798]
[1729071950819,15.3514,155.49,155.42,19.85693798]
[1729071951129,15.3514,155.49,155.45,19.85693798]
[1729071951897,15.3514,155.49,155.46,12.72184105]
[1729071953256,30.0,155.48,155.46,12.72184105]
[1729071953794,30.0,155.47,155.44,19.87547837]
[1729071956719,23.776884,155.52,155.44,19.87547837]
[1729071958630,30.206984,155.52,155.44,19.87547837]
[1729071959338,23.776884,155.52,155.44,19.87547837]
[1729071961131,16.5565,155.53,155.48,19.87547837]
[1729071961318,30.0,155.49,155.48,19.87547837]
[1729071962517,16.5565,155.53,155.48,19.87547837]
[1729071962721,16.5565,155.53,155.5,19.87547837]
[1729071962907,30.0,155.51,155.5,20.0]
[1729071963105,30.0,155.51,155.5,39.87547837]
[1729071963531,15.5897,155.57,155.51,20.0]
[1729071963734,15.5897,155.57,155.52,19.87547837]
[1729071966811,15.5897,155.57,155.5,19.87547837]
[1729071967116,15.5897,155.57,155.51,20.0]
[1729071971042,15.5897,155.57,155.52,19.87547837]
[1729071973838,15.5897,155.57,155.55,12.70776204]
[1729071974136,30.0,155.56,155.55,12.70776204]
[1729071983543,30.0,155.56,155.49,20.0]
[1729071983717,36.4286,155.56,155.5,12.70776204]
[1729071983918,30.205784,155.55,155.5,12.70776204]
[1729071984217,36.4292,155.54,155.5,12.70776204]
[1729071984422,30.0,155.54,155.5,12.70776204]